fUSD/lending_fUSD_20240101
["ID","MTS","AMOUNT","RATE_DAILY","PERIOD"]
[309750413,1704070239917,-444.44444,0.00033998,2]
[309750414,1704070239926,-444.44444,0.00033998,2]
[309750415,1704070239935,-6000.0,0.00034,2]
[309750416,1704070239944,-1000.0,0.00034,4]
[309750417,1704070239955,-399.87,0.00034041,2]
[309750418,1704070239964,-150.0,0.00034049,2]
[309750419,1704070239973,-150.0,0.00034051,2]
[309750420,1704070239982,-150.0,0.00034063,2]
[309750421,1704070239991,-150.0,0.00034064,2]
[309750422,1704070240000,-151.81,0.00034089,2]
[309750423,1704070240009,-150.0,0.00034094,2]
[309750424,1704070240018,-555.55555,0.00034098,2]
[309750425,1704070240027,-150.0,0.00034134,2]
[309750426,1704070240035,-555.55555,0.00034198,2]
[309750427,1704070240044,-555.55555,0.00034198,2]
[309750428,1704070240054,-150.0,0.00034238,2]
[309750429,1704070240063,-555.55555,0.00034298,2]
[309750430,1704070240072,-151.81,0.00034347,2]
[309750431,1704070240081,-555.55555,0.00034398,2]
[309750432,1704070240090,-2000.0,0.000344,2]
[309750433,1704070240100,-150.0,0.000344,2]
[309750434,1704070240109,-150.0,0.00034472,2]
[309750435,1704070240118,-555.55555,0.00034498,2]
[309750436,1704070240127,-150.0,0.000345,2]
[309750437,1704070240136,-223.14356951,0.000345,2]
[309750438,1704070240145,-150.0,0.00034535,2]
[309750439,1704070240155,-369.59704817,0.00034545,4]
[309750440,1704070240164,-393.39736981,0.00034547,4]
[309750441,1704070240173,-279.95435992,0.00034547,4]
[309750442,1704070240183,-25108.27312724,0.00034547,4]
[309750443,1704070240196,-492.52274281,0.00034549,4]
[309750444,1704070240207,-150.0,0.00034595,2]
[309750445,1704070240216,-555.55555,0.00034598,2]
[309750446,1704070240225,-151.81,0.00034606,2]
[309750447,1704070240234,-500.0,0.0003462,2]
[309750448,1704070240243,-500.0,0.0003462,2]
[309750449,1704070240252,-542.0,0.00034621,5]
[309750450,1704070240261,-500.0,0.00034621,2]
[309750451,1704070240271,-500.0,0.00034621,2]
[309750452,1704070240281,-800.0,0.00034621,5]
[309750453,1704070240291,-648.28,0.00034629,2]
[309750454,1704070240302,-1067.53,0.00034649,2]
[309750455,1704070240313,-180.0,0.00034658,2]
[309750456,1704070240323,-454.1,0.00034672,2]
[309750457,1704070240334,-555.55555,0.00034698,2]
[309750458,1704070240343,-150.0,0.00034709,2]
[309750459,1704070240353,-150.0,0.00034796,2]
[309750460,1704070240362,-555.55555,0.00034798,2]
[309750461,1704070240372,-150.0,0.00034801,2]
[309750462,1704070240381,-151.81,0.00034864,2]
[309750463,1704070240391,-155.0,0.00034895,4]
[309750464,1704070240401,-435.02642299,0.00034896,4]
[309750465,1704070240411,-2935.14746776,0.00034896,4]
[309750466,1704070240420,-6410.74872,0.00034896,4]
[309750467,1704070240431,-155.0,0.00034896,4]
[309750468,1704070240441,-155.0,0.00034896,4]
[309750469,1704070240450,-5702.55785271,0.00034896,4]
[309750470,1704070240460,-574.02915906,0.00034896,4]
[309750471,1704070240470,-18935.58537673,0.00034896,2]
[309750472,1704070240479,-1074.86246861,0.00034896,4]
[309750473,1704070240489,-214.21133708,0.00034896,4]
[309750474,1704070240498,-33614.31595587,0.00034896,4]
[309750475,1704070240508,-416.246012,0.00034896,4]
[309750476,1704070240519,-5000.0,0.00034896,3]
[309750477,1704070240528,-540.53733364,0.00034896,4]
[309750478,1704070240538,-1852.84792754,0.00034896,4]
[309750479,1704070240548,-200.0,0.00034897,2]
[309750480,1704070240557,-930.04441844,0.00034897,2]
[309750481,1704070240566,-2261.29725653,0.00034897,4]
[309750482,1704070240576,-3768.64686179,0.00034897,4]
[309750483,1704070240585,-526.86634552,0.00034897,4]
[309750484,1704070240594,-155.0,0.00034897,2]
[309750485,1704070240605,-251.81944836,0.00034897,4]
[309750486,1704070240615,-155.0,0.00034897,2]
[309750487,1704070240626,-713.25,0.00034898,2]
[309750488,1704070240636,-1606.18934762,0.00034898,4]
[309750489,1704070240646,-163.25181373,0.00034898,4]
[309750490,1704070240657,-1132.18502377,0.00034898,4]
[309750491,1704070240668,-362.5696016,0.00034898,4]
[309750492,1704070240677,-649.92932885,0.00034898,4]
[309750494,1704070240961,-153.87,0.00030732,2]
[309750495,1704070240971,-153.87,0.00031973,2]
[309750496,1704070240981,-153.87,0.00033215,2]
[309750497,1704070240990,-4350.07067115,0.00034898,4]
[309750498,1704070241000,-217.02178002,0.00034898,4]
[309750499,1704070241009,-5508.54754883,0.00034898,4]
[309750500,1704070241021,-5430.26010052,0.00034898,4]
[309750501,1704070241840,-153.87,0.00034457,2]
[309750502,1704070241849,-844.616475,0.00034898,4]
[309750503,1704070241949,-1123.71456011,0.00034898,4]
[309750506,1704070241961,-1267.80842534,0.00034898,4]
[309750515,1704070244171,-2520.24589092,0.00034898,4]
[309750516,1704070244183,-1040.25307212,0.00034898,4]
[309750517,1704070244194,-301.00711331,0.00034898,2]
[309750518,1704070244204,-3954.64503825,0.00034898,2]
[309750519,1704070244229,-155.0,0.00034898,4]
[309750520,1704070244239,-308.81250607,0.00034898,4]
[309750521,1704070244251,-278.13734884,0.00034898,4]
[309750522,1704070244262,-1846.1316338,0.00034898,4]
[309750523,1704070244272,-2309.82978544,0.00034898,4]
[309750524,1704070244282,-521.61757631,0.00034898,4]
[309750525,1704070244292,-2609.20077169,0.00034898,2]
[309750526,1704070244302,-555.55555,0.00034898,2]
[309750527,1704070244313,-8837.2752182,0.00034898,2]
[309750528,1704070244323,-4734.0748708,0.00034898,2]
[309750529,1704070244332,-101902.6362704,0.00034898,2]
[309750530,1704070244343,-1092.76397117,0.00034899,2]
[309750531,1704070244353,-2465.28590103,0.00034899,4]
[309750532,1704070244363,-360.6247725,0.00034899,4]
[309750533,1704070244373,-402.32392795,0.00034899,30]
[309750534,1704070244383,-55380.29801371,0.000349,2]
[309750535,1704070244393,-150.1,0.000349,2]
[309750536,1704070244403,-900.64436974,0.000349,2]
[309750537,1704070244413,-205.57147773,0.000349,2]
[309750538,1704070244423,-1325.9513583,0.000349,2]
[309750539,1704070244434,-1275.9251652,0.000349,2]
[309750540,1704070244444,-1000.0,0.000349,2]
[309750541,1704070244453,-400.0,0.00034907,2]
[309750542,1704070244463,-150.0,0.00034922,2]
[309750543,1704070244473,-2622.695014,0.00034931,2]
[309750544,1704070244482,-12893.544964,0.00034931,2]
[309750545,1704070244492,-3278.368769,0.00034931,2]
[309750547,1704070244502,-38680.634895,0.00034931,2]
[309750548,1704070244512,-4589.716276,0.00034931,2]
[309750549,1704070244522,-150.0,0.00034987,2]
[309750550,1704070244532,-1727.56372332,0.0003499,2]
[309750551,1704070244542,-150.0,0.00034995,2]
[309750552,1704070244552,-150.0,0.00034996,2]
[309750553,1704070244562,-555.55555,0.00034998,2]
[309750554,1704070244571,-1254.14894573,0.00035,4]
[309750555,1704070244581,-16450.98256788,0.00035,2]
[309750556,1704070244592,-184.73326351,0.00035,4]
[309750557,1704070244601,-2936.92560029,0.00035,4]
[309750558,1704070244611,-200.99453755,0.00035,2]
[309750559,1704070244620,-2500.0,0.00035,2]
[309750560,1704070244634,-500.0,0.00035,2]
[309750561,1704070244645,-500.0,0.00035,2]
[309750562,1704070244654,-500.0,0.00035,2]
[309750563,1704070244664,-500.0,0.00035,2]
[309750564,1704070244676,-500.0,0.00035,2]
[309750565,1704070244687,-500.0,0.00035,2]
[309750566,1704070244697,-500.0,0.00035,2]
[309750567,1704070244706,-500.0,0.00035,2]
[309750568,1704070244717,-500.0,0.00035,2]
[309750569,1704070244727,-500.0,0.00035,2]
[309750570,1704070244737,-500.0,0.00035,2]
[309750571,1704070244746,-500.0,0.00035,2]
[309750572,1704070244756,-500.0,0.00035,2]
[309750573,1704070244765,-500.0,0.00035,2]
[309750574,1704070244774,-500.0,0.00035,2]
[309750575,1704070244784,-500.0,0.00035,2]
[309750576,1704070244794,-500.0,0.00035,2]
[309750577,1704070244803,-627.08842709,0.00035,2]
[309750578,1704070244812,-242.16637413,0.00035,2]
[309750579,1704070244825,-927.9618024,0.00035,2]
[309750580,1704070244835,-650.0,0.00035,3]
[309750581,1704070244844,-158.53799827,0.00035,30]
[309750582,1704070244854,-7500.0,0.00035013,2]
[309750583,1704070244863,-150.0,0.00035013,2]
[309750584,1704070244873,-448.16,0.0003504,2]
[309750585,1704070244882,-150.0,0.00035059,2]
[309750586,1704070244893,-3278.368768,0.00035068,2]
[309750587,1704070244903,-16116.931206,0.00035068,2]
[309750588,1704070244912,-4097.960961,0.00035068,2]
[309750589,1704070244923,-48350.793619,0.00035068,2]
[309750590,1704070244932,-5737.145345,0.00035068,2]
[309750591,1704070244942,-150.0,0.00035076,2]
[309750592,1704070244951,-666.66666,0.00035098,2]
[309750593,1704070244960,-151.81,0.00035122,2]
[309750594,1704070244970,-150.0,0.00035143,2]
[309750595,1704070244979,-150.0,0.00035178,2]
[309750596,1704070244989,-723.04868311,0.0003519,2]
[309750597,1704070244998,-150.0,0.00035193,2]
[309750598,1704070245007,-666.66666,0.00035198,2]
[309750599,1704070245016,-1226.47775824,0.00035212,2]
[309750600,1704070245026,-150.42262754,0.00035242,2]
[309750601,1704070245035,-150.0,0.00035256,2]
[309750602,1704070245045,-295.45179549,0.00035264,7]
[309750603,1704070245054,-156.91982878,0.0003528,7]
[309750604,1704070245063,-666.66666,0.00035298,2]
[309750605,1704070245072,-151.0,0.00035342,7]
[309750606,1704070245082,-151.0,0.00035342,7]
[309750607,1704070245091,-151.0,0.00035342,7]
[309750608,1704070245100,-151.0,0.00035342,7]
[309750609,1704070245109,-151.0,0.00035342,7]
[309750610,1704070245119,-151.0,0.00035342,7]
[309750611,1704070245128,-151.0,0.00035342,7]
[309750612,1704070245137,-151.0,0.00035342,7]
[309750613,1704070245147,-151.0,0.00035342,7]
[309750614,1704070245156,-4589.716276,0.00035342,2]
[309750615,1704070245165,-22563.703688,0.00035342,2]
[309750616,1704070245175,-5737.145345,0.00035342,2]
[309750617,1704070245184,-67691.111067,0.00035342,2]
[309750618,1704070245194,-8032.003483,0.00035342,2]
[309750619,1704070245203,-151.81,0.0003538,2]
[309750620,1704070245212,-150.0,0.00035392,2]
[309750621,1704070245222,-666.66666,0.00035398,2]
[309750622,1704070245232,-2000.0,0.000354,2]
[309750623,1704070245241,-150.0,0.0003542,2]
[309750624,1704070245251,-150.0,0.00035428,2]
[309750625,1704070245260,-150.0,0.00035451,2]
[309750626,1704070245273,-416.28,0.00035451,2]
[309750627,1704070245282,-313.15,0.00035451,2]
[309750628,1704070245292,-313.15,0.00035451,2]
[309750629,1704070245303,-313.15,0.00035451,2]
[309750630,1704070245313,-313.15,0.00035451,2]
[309750631,1704070245323,-313.15,0.00035451,2]
[309750632,1704070245333,-313.15,0.00035451,2]
[309750633,1704070245344,-313.15,0.00035451,2]
[309750634,1704070245354,-150.0,0.00035456,2]
[309750635,1704070245366,-666.66666,0.00035498,2]
[309750636,1704070245375,-48909.0,0.000355,3]
[309750637,1704070245386,-108963.72345293,0.000355,2]
[309750638,1704070245397,-151.0,0.000355,7]
[309750639,1704070245406,-176.603561,0.000355,7]
[309750640,1704070245416,-150.0,0.00035508,2]
[309750641,1704070245426,-150.0,0.00035515,2]
[309750642,1704070245436,-167.0,0.00035584,2]
[309750643,1704070245446,-167.0,0.00035584,2]
[309750644,1704070245456,-167.0,0.00035584,2]
[309750645,1704070245466,-351.72,0.00035587,2]
[309750646,1704070245476,-777.77777,0.00035598,2]
[309750647,1704070245486,-184879.289062,0.000356,7]
[309750648,1704070245496,-151.0,0.000356,7]
[309750649,1704070245506,-150.0,0.00035606,2]
[309750650,1704070245515,-150.0,0.00035616,2]
[309750651,1704070245525,-393.62184176,0.00035616,2]
[309750652,1704070245535,-150.0,0.00035616,2]
[309750653,1704070245545,-150.0,0.00035619,2]
[309750654,1704070245554,-151.81,0.00035639,2]
[309750655,1704070245564,-454.1,0.0003565,2]
[309750656,1704070245573,-205.0,0.0003566,2]
[309750657,1704070245583,-150.0,0.00035672,2]
[309750658,1704070245593,-777.77777,0.00035698,2]
[309750659,1704070245603,-153.87,0.00035698,2]
[309750660,1704070245809,-295.45179549,0.00035727,8]
[309750661,1704070245819,-777.77777,0.00035798,2]
[309750662,1704070245828,-150.0,0.00035858,2]
[309750663,1704070245837,-150.0,0.00035871,2]
[309750664,1704070245847,-151.81,0.00035897,2]
[309750665,1704070245857,-777.77777,0.00035898,2]
[309750666,1704070245866,-1000.0,0.000359,2]
[309750667,1704070245875,-150.0,0.0003596,2]
[309750668,1704070245884,-150.0,0.00035968,2]
[309750669,1704070245895,-777.77777,0.00035998,2]
[309750670,1704070245905,-83306.5153412,0.00036,4]
[309750671,1704070245914,-198.373027,0.00036,7]
[309750672,1704070245923,-150.0,0.00036067,2]
[309750673,1704070245933,-150.0,0.00036079,2]
[309750674,1704070245943,-8749.80617925,0.00036089,2]
[309750675,1704070245951,-8749.80617924,0.00036089,2]
[309750676,1704070245961,-8749.80617924,0.00036089,2]
[309750677,1704070245970,-150.0,0.00036107,2]
[309750678,1704070245980,-150.0,0.00036119,2]
[309750679,1704070245989,-150.0,0.00036133,2]
[309750680,1704070245998,-151.81,0.00036155,2]
[309750681,1704070246007,-150.0,0.00036168,2]
[309750682,1704070246016,-295.45179549,0.00036191,9]
[309750683,1704070246025,-8749.80617924,0.000362,2]
[309750684,1704070246034,-150.0,0.00036237,2]
[309750685,1704070246042,-306.9,0.00036273,2]
[309750686,1704070246051,-399.87,0.00036298,2]
[309750688,1704070246060,-399.87,0.00036298,2]
[309750689,1704070246069,-397.73,0.00036298,2]
[309750690,1704070246078,-2000.0,0.000364,2]
[309750691,1704070246096,-158.05,0.00036404,2]
[309750692,1704070246109,-151.81,0.00036413,2]
[309750694,1704070246119,-150.0,0.0003642,2]
[309750695,1704070246129,-150.0,0.00036474,2]
[309750696,1704070246139,-150.0,0.00036476,2]
[309750697,1704070246149,-150.0,0.00036494,2]
[309750698,1704070246159,-7595.88872168,0.000365,2]
[309750700,1704070246177,-806.61039001,0.000365,2]
[309750702,1704070246293,-2321.50088831,0.000365,2]
[309750703,1704070246303,-150.0,0.00036505,2]
[309750704,1704070246313,-150.0,0.00036554,2]
[309750705,1704070246323,-454.1,0.00036629,2]
[309750706,1704070246333,-205.0,0.0003665,2]
[309750707,1704070246343,-295.45179549,0.00036655,9]
[309750708,1704070246353,-156.91982878,0.0003666,8]
[309750709,1704070246363,-151.81,0.00036672,2]
[309750710,1704070246373,-162.84649395,0.000367,2]
[309750711,1704070246381,-642.84540976,0.000367,2]
[309750712,1704070246390,-305.53096496,0.000367,2]
[309750713,1704070246401,-160.37698639,0.000367,27]
[309750714,1704070246411,-150.0,0.00036718,2]
[309750715,1704070246421,-152.29,0.0003679,2]
[309750716,1704070246431,-200.0,0.0003679,2]
[309750717,1704070246440,-37965.80814854,0.00036795,4]
[309750718,1704070246453,-2124.4355918,0.00036795,4]
[309750719,1704070246473,-1759.27717954,0.00036795,4]
[309750720,1704070246489,-926.38502705,0.00036795,4]
[309750721,1704070246580,-809.73028551,0.00034899,2]
[309750722,1704070246593,-849.42738475,0.00034899,2]
[309750723,1704070246603,-838.09405307,0.00036795,4]
[309750724,1704070246613,-666.240101,0.00036798,2]
[309750725,1704070246624,-150.0,0.00036799,2]
[309750726,1704070246636,-246.7011345,0.000368,2]
[309750727,1704070246647,-151.0,0.000368,7]
[309750728,1704070246658,-212.02682227,0.000368,2]
[309750729,1704070246667,-3810.70345587,0.000368,3]
[309750730,1704070246691,-453.59632671,0.00027189,2]
[309750731,1704070430104,409.38156251,0.00023,2]
[309750732,1704070430130,5361.96642584,0.00023,2]
[309750733,1704070430155,3066.03357416,0.00023,2]
[309750734,1704070430181,5361.96642584,0.00023,2]
[309750735,1704070430207,5361.96642584,0.00023,2]
[309750736,1704070430232,5361.96642584,0.00023,2]
[309750737,1704070430258,3096.09607822,0.00023,2]
[309750739,1704070457688,4471.47817602,0.00038955,35]
[309750740,1704070888755,1350.098404,0.00038949,30]
[309750741,1704071322276,-1198.8394838,0.00022899,2]
[309750743,1704071322303,-2474.4027,0.000229,2]
[309750745,1704071322328,-220.21652882,0.00022998,2]
[309750746,1704071322352,-150.0,0.00022999,2]
[309750748,1704071322376,-150.0,0.00022999,2]
[309750750,1704071322402,-514.66130197,0.00022999,2]
[309750752,1704071322426,-1214.23394961,0.00023,2]
[309750753,1704071322461,-5922.3539642,0.00023,2]
[309750754,1704071322490,-5922.3539642,0.00023,2]
[309750755,1704071322520,-5922.3539642,0.00023,2]
[309750756,1704071322551,-5922.3539642,0.00023,2]
[309750757,1704071322581,-5922.3539642,0.00023,2]
[309750758,1704071322615,-1936.4848219,0.00023,2]
[309750759,1704071347349,-6671.76613634,0.00023,2]
[309750761,1704071347408,-3904.07192842,0.00023,2]
[309750792,1704071431479,-462.38794242,0.00022998,2]
[309750794,1704071431489,-382.54895188,0.00022999,2]
[309750796,1704071431499,-2498.22164737,0.00023,2]
[309750801,1704071431535,-5854.21545611,0.00023,2]
[309750804,1704071431547,-2971.39464582,0.00023,2]
[309750806,1704071431559,-2789.53472835,0.00023,2]
[309750810,1704071431646,-3225.18862013,0.00023,2]
[309750811,1704071431715,-1297.40718815,0.00023,2]
[309750812,1704071431726,-333.231228,0.00023,2]
[309750813,1704071431809,-1039.18709682,0.00023,2]
[309750814,1704071431822,-2561.51,0.00023,2]
[309750815,1704071431833,-2917.71032475,0.00023,2]
[309750816,1704071431845,-447.775,0.00023,2]
[309750817,1704071431873,-857.59365821,0.00023,2]
[309750860,1704071439142,-1198.8394838,0.00022997,2]
[309750861,1704071439151,-342.68637153,0.00022999,2]
[309750862,1704071439160,-3722.08714074,0.00023,2]
[309750863,1704071439567,-143362.17899137,0.00023,2]
[309750873,1704071440396,-1758.7304225,0.00023,2]
[309750874,1704071440411,-2462.16177258,0.00023,2]
[309750875,1704071440426,-3818.05353755,0.00023,2]
[309750884,1704071442675,-1362.92199844,0.00023,2]
[309750885,1704071442701,-890.28381578,0.00023,2]
[309750945,1704071790478,150.0,0.00038946,30]
[309750954,1704072620986,1319.2235,0.00038979,30]
[309750968,1704072631695,-336.4822786,0.00022487,2]
[309750969,1704072631709,-1012.23348766,0.00022487,2]
[309750970,1704072631815,-3651.28423374,0.00022487,2]
[309750971,1704072631825,-1580.02594183,0.00022488,2]
[309750972,1704072631837,-122.92397118,0.00022488,2]
[309750973,1704072631847,-5825.45329991,0.00022488,2]
[309750974,1704072631856,-155.0,0.00022488,2]
[309750975,1704072631867,-1824.04813647,0.00022488,2]
[309750976,1704072631879,-310.0,0.00022488,2]
[309750977,1704072631917,-1103.90650941,0.00022488,2]
[309750978,1704072631929,-3407.02625035,0.00022488,2]
[309750979,1704072631942,-2008.57023003,0.00022488,2]
[309750987,1704072637865,-163.35829217,0.00022487,2]
[309750988,1704072637876,-2422.75570783,0.00022488,2]
[309750989,1704072637888,-7871.95989173,0.00022488,2]
[309750990,1704072637898,-492.83979718,0.00022488,2]
[309750991,1704072638104,-2931.92111189,0.00022488,2]
[309750992,1704072638114,-5706.23288983,0.00022489,2]
[309750993,1704072638124,-6413.64923155,0.0002249,2]
[309750994,1704072638133,-393.57313961,0.00022491,2]
[309750995,1704072638142,-3919.3653416,0.00022491,2]
[309750996,1704072638152,-2604.61705641,0.00022492,2]
[309750997,1704072638162,-2626.36379227,0.00022492,2]
[309750998,1704072638171,-167.12641852,0.00022492,2]
[309750999,1704072638181,-253.0348258,0.00022492,2]
[309751000,1704072638190,-156.66604086,0.00022528,2]
[309751001,1704072638200,-221.8098495,0.00022768,4]
[309751002,1704072638210,-2658.3487,0.000229,2]
[309751003,1704072638219,-2308.54299781,0.00022998,2]
[309751004,1704072638228,-361.0768661,0.00022999,2]
[309751005,1704072638238,-1846.1316338,0.00022999,2]
[309751006,1704072638247,-1123.71456011,0.00022999,2]
[309751007,1704072638256,-101305.2048468,0.00023,2]
[309751008,1704072638315,-379.80643468,0.00023,2]
[309751009,1704072638344,-1238.88299191,0.00023,2]
[309751010,1704072638368,-5356.73164703,0.00023,2]
[309751012,1704072640306,-481.82624754,0.00023,2]
[309751013,1704072641307,-877.16886363,0.00023,2]
[309751014,1704072641319,-2808.01052073,0.00023,2]
[309751015,1704072641330,-1475.12240308,0.00023,2]
[309751016,1704072641346,-22303.5665113,0.00023,2]
[309751017,1704072641357,-1493.35750638,0.00023,2]
[309751018,1704072641366,-205.16566755,0.00023,2]
[309751019,1704072641382,-294.82433245,0.00023,2]
[309751020,1704072641391,-343.23248157,0.00023,2]
[309751024,1704072642874,-2605.2545687,0.00022486,2]
[309751025,1704072642888,-172.84317381,0.00023,2]
[309751026,1704072642902,-1354.69434462,0.00023,2]
[309751027,1704072642916,-105.30565538,0.00023016,2]
[309751028,1704072642933,-1121.17210285,0.00023016,2]
[309751029,1704072642947,-186.26458815,0.00025113,5]
[309751030,1704072642961,-380.37,0.00025113,2]
[309751031,1704072642974,-336.09,0.00026129,2]
[309751032,1704072642987,-740.68,0.00026213,2]
[309751033,1704072643000,-4418.8046296,0.000264,2]
[309751034,1704072643014,-9002.51706224,0.000264,2]
[309751035,1704072643027,-163.52,0.00026677,2]
[309751036,1704072643039,-250.0,0.00026762,2]
[309751037,1704072643052,-482.7,0.00026844,2]
[309751038,1704072643065,-450.0,0.00027,3]
[309751039,1704072643078,-272.47367329,0.00027189,2]
[309751040,1704072643091,-380.37,0.00027377,2]
[309751041,1704072643103,-161.86923418,0.00027397,2]
[309751042,1704072643116,-88.13076582,0.00027397,2]
[309751043,1704072643130,-259.71290783,0.000277,2]
[309751044,1704072643151,-1008.28687562,0.000277,2]
[309751045,1704072643167,-1165.39088792,0.000277,2]
[309751046,1704072643182,-22477.72477432,0.000277,2]
[309751092,1704072646584,-5000.0,0.00027699,2]
[309751093,1704072646597,-7826.88455431,0.000277,2]
[309751094,1704072646610,-1998.0,0.000277,2]
[309751095,1704072646621,-356.99104614,0.00027874,2]
[309751096,1704072646634,-7273.8,0.00027945,2]
[309751097,1704072646646,-157.47,0.00028341,2]
[309751098,1704072646659,-500.0,0.00029,3]
[309751099,1704072646671,-740.68,0.0002949,2]
[309751100,1704072646683,-380.37,0.00029641,2]
[309751101,1704072646695,-155.0,0.0003,2]
[309751102,1704072646707,-9604.33331486,0.0003,2]
[309751103,1704072646719,-8037.78859249,0.0003,4]
[309751104,1704072646734,-153.87,0.00030137,2]
[309751105,1704072646746,-156.66604086,0.00030164,2]
[309751106,1704072646759,-320.0,0.0003048,2]
[309751107,1704072646771,-550.0,0.00031,3]
[309751108,1704072646783,-320.0,0.0003143,2]
[309751109,1704072646795,-380.37,0.00031905,2]
[309751110,1704072646808,-164.25,0.00031974,2]
[309751111,1704072646820,-219.74,0.00031974,2]
[309751112,1704072646832,-705.29474168,0.00032,2]
[309751113,1704072646844,-250.0,0.00032147,2]
[309751114,1704072646857,-259.32,0.00032172,2]
[309751115,1704072646869,-320.0,0.0003238,2]
[309751116,1704072646882,-384.057,0.00032457,2]
[309751117,1704072646894,-163.203,0.00032457,2]
[309751118,1704072646903,-234.94,0.0003248,2]
[309751119,1704072646914,-740.68,0.00032766,2]
[309751120,1704072646924,-2500.0,0.00032877,7]
[309751121,1704072646934,-153.87,0.00032877,2]
[309751122,1704072646944,-2000.0,0.000329,2]
[309751123,1704072646954,-275.51006705,0.000329,2]
[309751124,1704072646963,-681.0,0.000329,2]
[309751125,1704072646973,-469.0,0.000329,2]
[309751126,1704072646982,-3000.0,0.000329,2]
[309751127,1704072646992,-500.0,0.000329,2]
[309751128,1704072647001,-219.74,0.00032953,2]
[309751129,1704072647011,-600.0,0.00033,3]
[309751130,1704072647020,-212.0,0.00033173,2]
[309751131,1704072647291,-150.1,0.000332,2]
[309751132,1704072647312,-320.0,0.0003333,2]
[309751133,1704072647323,-150.0,0.0003339,2]
[309751134,1704072647333,-175.81,0.00033507,2]
[309751135,1704072647342,-158.05,0.00033589,2]
[309751136,1704072647352,-164.25,0.00033637,2]
[309751137,1704072647362,-150.0,0.00033752,2]
[309751138,1704072647372,-333.33333,0.00033798,2]
[309751139,1704072647382,-333.33333,0.00033898,2]
[309751140,1704072647391,-219.74,0.00033931,2]
[309751141,1704072647401,-333.33333,0.00033998,2]
[309751142,1704072647410,-6000.0,0.00034,2]
[309751143,1704072647421,-1000.0,0.00034,4]
[309751144,1704072647430,-444.44444,0.00034098,2]
[309751145,1704072647440,-150.0,0.00034146,2]
[309751146,1704072647450,-380.37,0.00034169,2]
[309751147,1704072647459,-444.44444,0.00034198,2]
[309751148,1704072647469,-150.0,0.00034211,2]
[309751149,1704072647478,-320.0,0.0003428,2]
[309751150,1704072647490,-444.44444,0.00034298,2]
[309751151,1704072647500,-150.0,0.00034373,2]
[309751152,1704072647510,-444.44444,0.00034398,2]
[309751153,1704072647521,-324.62488452,0.00034402,2]
[309751154,1704072647531,-444.44444,0.00034498,2]
[309751155,1704072647540,-150.0,0.00034502,2]
[309751156,1704072647550,-150.0,0.00034512,2]
[309751157,1704072647561,-150.0,0.0003459,2]
[309751158,1704072647570,-500.0,0.00034598,2]
[309751159,1704072647582,-444.44444,0.00034598,2]
[309751160,1704072647591,-176.21587746,0.00034598,7]
[309751161,1704072647599,-175.81,0.00034624,2]
[309751162,1704072647608,-180.0,0.00034658,2]
[309751163,1704072647617,-725.02,0.00034697,2]
[309751164,1704072647628,-444.44444,0.00034698,2]
[309751165,1704072647637,-444.44444,0.00034798,2]
[309751166,1704072647647,-444.44444,0.00034898,2]
[309751167,1704072647657,-6114.03895235,0.000349,2]
[309751168,1704072647667,-219.74,0.0003491,2]
[309751169,1704072647678,-150.0,0.00034927,2]
[309751170,1704072647688,-150.0,0.00034994,2]
[309751171,1704072647697,-444.44444,0.00034998,2]
[309751172,1704072647708,-966.42444588,0.00035,4]